[Event "*** SCC Grand Prix: Titled Tuesday Blitz"]
[Site "Chess.com"]
[Date "2020.10.06"]
[Round "10"]
[White "GigaQuparadze"]
[Black "frederiksvane"]
[Result "1/2-1/2"]
[WhiteElo "2977"]
[BlackElo "2686"]
[TimeControl "180+1"]
[EndTime "11:58:57 PDT"]
[Termination "Game drawn by repetition"]

1. e4 {[%clk 0:03:00.9]} 1... c5 {[%clk 0:03:00.4]} 2. Nf3 {[%clk 0:03:00.7]}
2... g6 {[%clk 0:03:01]} 3. c3 {[%clk 0:02:59.6]} 3... d5 {[%clk 0:03:00.5]} 4.
exd5 {[%clk 0:02:58.3]} 4... Qxd5 {[%clk 0:03:01.4]} 5. d4 {[%clk 0:02:59]} 5...
Bg7 {[%clk 0:03:01.3]} 6. Be3 {[%clk 0:02:58.6]} 6... cxd4 {[%clk 0:02:59.9]} 7.
cxd4 {[%clk 0:02:59.5]} 7... Qa5+ {[%clk 0:02:52.4]} 8. Nc3 {[%clk 0:02:59]}
8... Nh6 {[%clk 0:02:52.7]} 9. Bb5+ {[%clk 0:02:54.5]} 9... Bd7 {[%clk
0:02:51.4]} 10. Qb3 {[%clk 0:02:52.4]} 10... O-O {[%clk 0:02:41.6]} 11. Bxh6
{[%clk 0:02:40.2]} 11... Bxh6 {[%clk 0:02:41.4]} 12. O-O {[%clk 0:02:40.6]}
12... Bxb5 {[%clk 0:02:33.8]} 13. Nxb5 {[%clk 0:02:41.5]} 13... Nd7 {[%clk
0:02:22.7]} 14. Rfe1 {[%clk 0:02:40]} 14... e6 {[%clk 0:02:22.8]} 15. Nd6 {[%clk
0:02:37.8]} 15... Rab8 {[%clk 0:02:14.7]} 16. Ne5 {[%clk 0:02:37.1]} 16... Nxe5
{[%clk 0:01:51]} 17. dxe5 {[%clk 0:02:38]} 17... Rfd8 {[%clk 0:01:49.8]} 18. h4
{[%clk 0:02:23.6]} 18... Bf8 {[%clk 0:01:48]} 19. Red1 {[%clk 0:02:12.5]} 19...
Bxd6 {[%clk 0:01:43.1]} 20. exd6 {[%clk 0:02:12]} 20... Rd7 {[%clk 0:01:42.2]}
21. Rd4 {[%clk 0:02:07.2]} 21... Rbd8 {[%clk 0:01:41.7]} 22. Rad1 {[%clk
0:02:06.3]} 22... Qc5 {[%clk 0:01:36.5]} 23. Qd3 {[%clk 0:02:05.1]} 23... h5
{[%clk 0:01:32.1]} 24. a3 {[%clk 0:02:04.6]} 24... Qe5 {[%clk 0:01:28.3]} 25.
Qd2 {[%clk 0:02:03.6]} 25... Kh7 {[%clk 0:01:25.2]} 26. g3 {[%clk 0:02:03.3]}
26... Qc5 {[%clk 0:01:25.1]} 27. b4 {[%clk 0:02:01.8]} 27... Qe5 {[%clk
0:01:25.2]} 28. Qd3 {[%clk 0:02:01.7]} 28... Kg8 {[%clk 0:01:24]} 29. Kg2 {[%clk
0:02:02.1]} 29... Kh7 {[%clk 0:01:23.8]} 30. Rd2 {[%clk 0:02:02.5]} 30... Kg8
{[%clk 0:01:23.8]} 31. Re2 {[%clk 0:02:02.8]} 31... Qf5 {[%clk 0:01:19.4]} 32.
Qd1 {[%clk 0:02:00.4]} 32... Qf6 {[%clk 0:01:16.5]} 33. Red2 {[%clk 0:01:59.6]}
33... Qe5 {[%clk 0:01:15.2]} 34. R2d3 {[%clk 0:01:59]} 34... Kh7 {[%clk
0:01:14.1]} 35. Qd2 {[%clk 0:01:58.8]} 35... Kg8 {[%clk 0:01:13.8]} 36. Re3
{[%clk 0:01:57.3]} 36... Qg7 {[%clk 0:01:09.5]} 37. Qd1 {[%clk 0:01:48.4]} 37...
Qf6 {[%clk 0:01:09.1]} 38. Rd2 {[%clk 0:01:41]} 38... Qf5 {[%clk 0:01:03.9]} 39.
a4 {[%clk 0:01:33.6]} 39... b6 {[%clk 0:00:59]} 40. b5 {[%clk 0:01:32.7]} 40...
Qc5 {[%clk 0:00:56.6]} 41. Red3 {[%clk 0:01:32.9]} 41... Qe5 {[%clk 0:00:56.3]}
42. Rd4 {[%clk 0:01:29.6]} 42... Qc5 {[%clk 0:00:56.1]} 43. R2d3 {[%clk
0:01:28.8]} 43... Kh7 {[%clk 0:00:54.2]} 44. Qd2 {[%clk 0:01:28.8]} 44... Kg8
{[%clk 0:00:53.8]} 45. Rc3 {[%clk 0:01:28.9]} 45... Qe5 {[%clk 0:00:53.9]} 46.
Rc6 {[%clk 0:01:28.9]} 46... Kh7 {[%clk 0:00:54.1]} 47. Qd3 {[%clk 0:01:25.8]}
47... Kg8 {[%clk 0:00:53.9]} 48. Qe3 {[%clk 0:01:26.2]} 48... Qxe3 {[%clk
0:00:45.9]} 49. fxe3 {[%clk 0:01:27.1]} 49... Kg7 {[%clk 0:00:46.5]} 50. Kf3
{[%clk 0:01:25.4]} 50... f5 {[%clk 0:00:45.6]} 51. Rc7 {[%clk 0:01:21]} 51...
Kf6 {[%clk 0:00:43.9]} 52. Rdc4 {[%clk 0:01:20.5]} 52... e5 {[%clk 0:00:40.6]}
53. R4c6 {[%clk 0:01:10.2]} 53... Ke6 {[%clk 0:00:39.4]} 54. e4 {[%clk
0:01:10.5]} 54... Rxd6 {[%clk 0:00:34.5]} 55. exf5+ {[%clk 0:01:06.9]} 55...
gxf5 {[%clk 0:00:33.6]} 56. Rxd6+ {[%clk 0:01:05.3]} 56... Rxd6 {[%clk
0:00:34.5]} 57. Rxa7 {[%clk 0:01:05.6]} 57... Rd3+ {[%clk 0:00:33.6]} 58. Kf2
{[%clk 0:01:05.1]} 58... Ra3 {[%clk 0:00:30.9]} 59. Ra6 {[%clk 0:01:00.2]} 59...
Kd5 {[%clk 0:00:31]} 60. Rxb6 {[%clk 0:00:58.1]} 60... Rxa4 {[%clk 0:00:28.7]}
61. Rh6 {[%clk 0:00:58.2]} 61... Rb4 {[%clk 0:00:20.6]} 62. b6 {[%clk
0:00:57.9]} 62... Ke4 {[%clk 0:00:20.4]} 63. Kg2 {[%clk 0:00:58.3]} 63... Rb2+
{[%clk 0:00:20.1]} 64. Kh3 {[%clk 0:00:58.3]} 64... f4 {[%clk 0:00:20]} 65. gxf4
{[%clk 0:00:57.4]} 65... exf4 {[%clk 0:00:20.9]} 66. Rxh5 {[%clk 0:00:55.1]}
66... Rxb6 {[%clk 0:00:21]} 67. Rh8 {[%clk 0:00:54.4]} 67... Kf3 {[%clk
0:00:19.9]} 68. h5 {[%clk 0:00:52.4]} 68... Rb1 {[%clk 0:00:16.9]} 69. Kh4
{[%clk 0:00:52.8]} 69... Rh1+ {[%clk 0:00:17.1]} 70. Kg5 {[%clk 0:00:53.2]}
70... Kg3 {[%clk 0:00:18]} 71. h6 {[%clk 0:00:49.5]} 71... f3 {[%clk 0:00:18]}
72. Rf8 {[%clk 0:00:48.7]} 72... f2 {[%clk 0:00:17.2]} 73. Kg6 {[%clk 0:00:49]}
73... Kg2 {[%clk 0:00:16.9]} 74. h7 {[%clk 0:00:48.8]} 74... f1=Q {[%clk
0:00:16.1]} 75. Rxf1 {[%clk 0:00:48.6]} 75... Kxf1 {[%clk 0:00:17]} 76. Kg7
{[%clk 0:00:49.1]} 76... Rg1+ {[%clk 0:00:17.5]} 77. Kf8 {[%clk 0:00:48.6]}
77... Rh1 {[%clk 0:00:18.4]} 78. Kg7 {[%clk 0:00:49]} 78... Rg1+ {[%clk
0:00:17.7]} 79. Kf8 {[%clk 0:00:48.8]} 79... Rh1 {[%clk 0:00:18.6]} 80. Kg7
{[%clk 0:00:49.1]} 1/2-1/2

[Event "*** SCC Grand Prix: Titled Tuesday Blitz"]
[Site "Chess.com"]
[Date "2020.10.06"]
[Round "10"]
[White "Bastiandash"]
[Black "PavelChernomordik"]
[Result "1-0"]
[WhiteElo "2285"]
[BlackElo "2349"]
[TimeControl "180+1"]
[EndTime "11:58:58 PDT"]
[Termination "Bastiandash won on time"]

1. d4 {[%clk 0:03:00.9]} 1... g6 {[%clk 0:02:59.7]} 2. c3 {[%clk 0:02:59.1]}
2... Bg7 {[%clk 0:03:00]} 3. Nf3 {[%clk 0:03:00]} 3... d6 {[%clk 0:02:59.1]} 4.
Bg5 {[%clk 0:02:58.2]} 4... h6 {[%clk 0:02:54.7]} 5. Bh4 {[%clk 0:02:50.4]} 5...
b6 {[%clk 0:02:52.7]} 6. Nbd2 {[%clk 0:02:48.6]} 6... Bb7 {[%clk 0:02:52.5]} 7.
e4 {[%clk 0:02:48.1]} 7... Nd7 {[%clk 0:02:50]} 8. Be2 {[%clk 0:02:45.8]} 8...
c5 {[%clk 0:02:43.4]} 9. O-O {[%clk 0:02:29]} 9... cxd4 {[%clk 0:02:35.8]} 10.
cxd4 {[%clk 0:02:29.9]} 10... g5 {[%clk 0:02:32.8]} 11. Bg3 {[%clk 0:02:30.2]}
11... g4 {[%clk 0:02:32.6]} 12. Nh4 {[%clk 0:02:30.2]} 12... Bxd4 {[%clk
0:02:27.5]} 13. Bxg4 {[%clk 0:02:30]} 13... Bxb2 {[%clk 0:02:24.3]} 14. Rb1
{[%clk 0:02:29.8]} 14... Bf6 {[%clk 0:02:17.3]} 15. f4 {[%clk 0:02:16.9]} 15...
e6 {[%clk 0:02:10.1]} 16. Nhf3 {[%clk 0:02:15.1]} 16... h5 {[%clk 0:02:08.2]}
17. Bh3 {[%clk 0:02:13.2]} 17... Rc8 {[%clk 0:01:57.6]} 18. e5 {[%clk 0:02:02]}
18... Be7 {[%clk 0:01:48.4]} 19. f5 {[%clk 0:02:00.2]} 19... Nc5 {[%clk
0:01:27.3]} 20. fxe6 {[%clk 0:01:56.6]} 20... Nxe6 {[%clk 0:01:23.3]} 21. Bxe6
{[%clk 0:01:34.9]} 21... fxe6 {[%clk 0:01:22]} 22. Nd4 {[%clk 0:01:35.1]} 22...
dxe5 {[%clk 0:01:15.7]} 23. Nxe6 {[%clk 0:01:20.3]} 23... Qd5 {[%clk 0:01:14.1]}
24. Ng7+ {[%clk 0:01:20.3]} 24... Kd8 {[%clk 0:01:06.6]} 25. Nf3 {[%clk
0:01:14.2]} 25... Nf6 {[%clk 0:00:56.6]} 26. Nxe5 {[%clk 0:01:05.6]} 26... Bc5+
{[%clk 0:00:42.1]} 27. Kh1 {[%clk 0:01:04.4]} 27... Ke7 {[%clk 0:00:41.1]} 28.
Qxd5 {[%clk 0:00:44.2]} 28... Bxd5 {[%clk 0:00:40]} 29. Ng6+ {[%clk 0:00:33.9]}
29... Kf7 {[%clk 0:00:39.6]} 30. Be5 {[%clk 0:00:23]} 30... Kxg6 {[%clk
0:00:35.9]} 31. Rxf6+ {[%clk 0:00:15.3]} 31... Kxg7 {[%clk 0:00:32.7]} 32. Rd6+
{[%clk 0:00:14]} 32... Kh7 {[%clk 0:00:27.4]} 33. Rxd5 {[%clk 0:00:12]} 33...
Rhd8 {[%clk 0:00:26.1]} 34. Rbd1 {[%clk 0:00:10.6]} 34... Rxd5 {[%clk 0:00:25]}
35. Rxd5 {[%clk 0:00:11.5]} 35... Bd6 {[%clk 0:00:21.2]} 36. h4 {[%clk
0:00:11.3]} 36... Bxe5 {[%clk 0:00:20.1]} 37. Rxe5 {[%clk 0:00:12.2]} 37... Rc2
{[%clk 0:00:19.5]} 38. Re7+ {[%clk 0:00:11.8]} 38... Kg6 {[%clk 0:00:19.4]} 39.
Rxa7 {[%clk 0:00:12.7]} 39... Kf5 {[%clk 0:00:18.8]} 40. Ra4 {[%clk 0:00:12.8]}
40... b5 {[%clk 0:00:17.1]} 41. Rb4 {[%clk 0:00:04]} 41... Rxa2 {[%clk
0:00:15.7]} 42. Rxb5+ {[%clk 0:00:04.5]} 42... Kg4 {[%clk 0:00:15.4]} 43. Kh2
{[%clk 0:00:04]} 43... Kxh4 {[%clk 0:00:14.1]} 44. Rb4+ {[%clk 0:00:04.4]} 44...
Kg5 {[%clk 0:00:13.2]} 45. Kh3 {[%clk 0:00:05.3]} 45... Ra3+ {[%clk 0:00:12]}
46. g3 {[%clk 0:00:05.9]} 46... Rd3 {[%clk 0:00:11.9]} 47. Rb5+ {[%clk 0:00:06]}
47... Kg6 {[%clk 0:00:11.5]} 48. Kh4 {[%clk 0:00:06.1]} 48... Rd4+ {[%clk
0:00:10.6]} 49. Kh3 {[%clk 0:00:06.6]} 49... Rd3 {[%clk 0:00:06.7]} 50. Rb4
{[%clk 0:00:06.7]} 50... Re3 {[%clk 0:00:05.7]} 51. Rd4 {[%clk 0:00:06.1]} 51...
Kg5 {[%clk 0:00:05.2]} 52. Rd5+ {[%clk 0:00:06]} 52... Kg6 {[%clk 0:00:01.2]}
53. Rb5 {[%clk 0:00:06.5]} 1-0

[Event "*** SCC Grand Prix: Titled Tuesday Blitz"]
[Site "Chess.com"]
[Date "2020.10.06"]
[Round "10"]
[White "NMZanette"]
[Black "Gerasimenyuk_Miha"]
[Result "0-1"]
[WhiteElo "2242"]
[BlackElo "2420"]
[TimeControl "180+1"]
[EndTime "11:59:07 PDT"]
[Termination "Gerasimenyuk_Miha won by checkmate"]

1. e4 {[%clk 0:02:58.8]} 1... d5 {[%clk 0:02:59.7]} 2. exd5 {[%clk 0:02:58.5]}
2... Qxd5 {[%clk 0:03:00.6]} 3. Nc3 {[%clk 0:02:58.2]} 3... Qa5 {[%clk
0:03:00.9]} 4. d4 {[%clk 0:02:58]} 4... Nf6 {[%clk 0:02:59]} 5. Bd2 {[%clk
0:02:57.7]} 5... Nc6 {[%clk 0:02:58.7]} 6. Nf3 {[%clk 0:02:56.7]} 6... Bg4
{[%clk 0:02:58.1]} 7. Bb5 {[%clk 0:02:44.1]} 7... O-O-O {[%clk 0:02:57.2]} 8.
Bxc6 {[%clk 0:02:43.3]} 8... bxc6 {[%clk 0:02:58.1]} 9. h3 {[%clk 0:02:41.5]}
9... Qh5 {[%clk 0:02:58.1]} 10. Qe2 {[%clk 0:02:31.5]} 10... Bxf3 {[%clk
0:02:57.2]} 11. gxf3 {[%clk 0:02:31.4]} 11... Nd5 {[%clk 0:02:52.9]} 12. O-O-O
{[%clk 0:02:21.8]} 12... e6 {[%clk 0:02:52.1]} 13. Qa6+ {[%clk 0:02:19.4]} 13...
Kb8 {[%clk 0:02:48.1]} 14. Qxc6 {[%clk 0:02:06.6]} 14... Qxf3 {[%clk 0:02:44]}
15. Nb5 {[%clk 0:02:00.9]} 15... Bd6 {[%clk 0:01:57.1]} 16. Qa6 {[%clk 0:01:53]}
16... Qxf2 {[%clk 0:01:49.1]} 17. Nxa7 {[%clk 0:01:22.7]} 17... Ne7 {[%clk
0:01:47]} 18. Rhf1 {[%clk 0:01:07.8]} 18... Qxd4 {[%clk 0:01:45.4]} 19. Nb5
{[%clk 0:00:58]} 19... Qb6 {[%clk 0:01:41.7]} 20. Qa4 {[%clk 0:00:53.7]} 20...
f6 {[%clk 0:01:34.1]} 21. Rf3 {[%clk 0:00:51.9]} 21... Kc8 {[%clk 0:00:49.4]}
22. Rb3 {[%clk 0:00:49.6]} 22... Nc6 {[%clk 0:00:29.3]} 23. Be3 {[%clk
0:00:46.7]} 23... Bc5 {[%clk 0:00:21]} 24. Qa8+ {[%clk 0:00:38.8]} 24... Nb8
{[%clk 0:00:20.3]} 25. Nd6+ {[%clk 0:00:23.6]} 25... Rxd6 {[%clk 0:00:19.3]} 26.
Rxd6 {[%clk 0:00:20.2]} 26... Bxe3+ {[%clk 0:00:18.7]} 27. Kb1 {[%clk 0:00:17]}
27... Qxd6 {[%clk 0:00:18.5]} 28. Qxb8+ {[%clk 0:00:15.1]} 28... Kd7 {[%clk
0:00:18.4]} 29. Qb5+ {[%clk 0:00:15.4]} 29... Ke7 {[%clk 0:00:18.2]} 30. Rd3
{[%clk 0:00:14.8]} 30... Qe5 {[%clk 0:00:15.2]} 31. Qd7+ {[%clk 0:00:12.5]}
31... Kf8 {[%clk 0:00:15.3]} 32. Qd8+ {[%clk 0:00:08.7]} 32... Kf7 {[%clk
0:00:15.4]} 33. Qxh8 {[%clk 0:00:09.3]} 33... Bc5 {[%clk 0:00:15.2]} 34. a4
{[%clk 0:00:08.1]} 34... Qe1+ {[%clk 0:00:14.7]} 35. Ka2 {[%clk 0:00:08.6]}
35... Qe4 {[%clk 0:00:13.4]} 36. b3 {[%clk 0:00:03.7]} 36... Qe2 {[%clk
0:00:12.8]} 37. Qd8 {[%clk 0:00:04]} 37... Qxc2+ {[%clk 0:00:12.6]} 38. Ka1
{[%clk 0:00:04.1]} 38... Qc1+ {[%clk 0:00:12.3]} 39. Ka2 {[%clk 0:00:04.5]}
39... Be7 {[%clk 0:00:12.6]} 40. Qd4 {[%clk 0:00:04]} 40... Qa3+ {[%clk
0:00:12.8]} 41. Kb1 {[%clk 0:00:04]} 41... f5 {[%clk 0:00:12.9]} 42. Qb2 {[%clk
0:00:04.6]} 42... Qb4 {[%clk 0:00:13]} 43. Qc3 {[%clk 0:00:04]} 43... Qb6 {[%clk
0:00:13]} 44. Qc4 {[%clk 0:00:04.2]} 44... Bf6 {[%clk 0:00:13]} 45. Kc2 {[%clk
0:00:03.9]} 45... Qf2+ {[%clk 0:00:12.9]} 46. Rd2 {[%clk 0:00:03.3]} 46... Qg1
{[%clk 0:00:12.7]} 47. Re2 {[%clk 0:00:02.2]} 47... Qa1 {[%clk 0:00:12.5]} 48.
Qxe6+ {[%clk 0:00:02.4]} 48... Kg6 {[%clk 0:00:12.9]} 49. Qe8+ {[%clk 0:00:03]}
49... Kh6 {[%clk 0:00:12.9]} 50. Qe3+ {[%clk 0:00:03.2]} 50... g5 {[%clk
0:00:12.5]} 51. Qd2 {[%clk 0:00:03.5]} 51... Qb2+ {[%clk 0:00:12.6]} 52. Kd3
{[%clk 0:00:03.7]} 52... Qxb3+ {[%clk 0:00:13]} 53. Qc3 {[%clk 0:00:03.5]} 53...
Qxc3# {[%clk 0:00:13.5]} 0-1

[Event "*** SCC Grand Prix: Titled Tuesday Blitz"]
[Site "Chess.com"]
[Date "2020.10.06"]
[Round "10"]
[White "nelsoncopa"]
[Black "ethylalcohol"]
[Result "0-1"]
[WhiteElo "1669"]
[BlackElo "2114"]
[TimeControl "180+1"]
[EndTime "11:59:09 PDT"]
[Termination "ethylalcohol won on time"]

1. d4 {[%clk 0:03:00.9]} 1... Nf6 {[%clk 0:02:59.5]} 2. c4 {[%clk 0:03:01.3]}
2... g6 {[%clk 0:02:59.7]} 3. Nc3 {[%clk 0:03:01.2]} 3... Bg7 {[%clk 0:03:00.2]}
4. e4 {[%clk 0:03:01.8]} 4... d6 {[%clk 0:03:00.5]} 5. f3 {[%clk 0:03:02.2]}
5... Nc6 {[%clk 0:02:59.4]} 6. Be3 {[%clk 0:03:02.5]} 6... e5 {[%clk 0:02:59.5]}
7. d5 {[%clk 0:03:01.1]} 7... Ne7 {[%clk 0:02:59.7]} 8. Qd2 {[%clk 0:03:01.4]}
8... O-O {[%clk 0:02:44.8]} 9. Bd3 {[%clk 0:02:59.9]} 9... c5 {[%clk 0:02:42.7]}
10. Nge2 {[%clk 0:02:54.7]} 10... Ne8 {[%clk 0:02:29.9]} 11. Bh6 {[%clk
0:02:52.1]} 11... f5 {[%clk 0:02:26.9]} 12. Bxg7 {[%clk 0:02:50.9]} 12... Nxg7
{[%clk 0:02:26.5]} 13. h4 {[%clk 0:02:50.5]} 13... f4 {[%clk 0:02:25.1]} 14.
O-O-O {[%clk 0:02:44.8]} 14... a6 {[%clk 0:02:23.3]} 15. Rdg1 {[%clk 0:02:44.7]}
15... Bd7 {[%clk 0:02:21.3]} 16. g4 {[%clk 0:02:41.4]} 16... fxg3 {[%clk
0:02:21.1]} 17. Rxg3 {[%clk 0:02:39.7]} 17... Nh5 {[%clk 0:02:21.2]} 18. Rg5
{[%clk 0:02:32.9]} 18... Rxf3 {[%clk 0:02:17.6]} 19. Rhg1 {[%clk 0:02:32.7]}
19... Kh8 {[%clk 0:02:11.2]} 20. Rxh5 {[%clk 0:02:07.7]} 20... gxh5 {[%clk
0:02:11]} 21. Qh6 {[%clk 0:02:08.1]} 21... Qf8 {[%clk 0:02:03.7]} 22. Qxd6
{[%clk 0:02:07.2]} 22... Bg4 {[%clk 0:01:47.8]} 23. Qxe5+ {[%clk 0:01:59.8]}
23... Kg8 {[%clk 0:01:37.8]} 24. Kd2 {[%clk 0:01:58.8]} 24... Ng6 {[%clk
0:01:27.7]} 25. Qg5 {[%clk 0:01:49.8]} 25... Rf2 {[%clk 0:01:24.4]} 26. e5
{[%clk 0:01:38.7]} 26... Re8 {[%clk 0:01:16.8]} 27. e6 {[%clk 0:01:35.2]} 27...
Qf4+ {[%clk 0:01:07.9]} 28. Qxf4 {[%clk 0:01:33.2]} 28... Nxf4 {[%clk
0:01:08.1]} 29. Ke3 {[%clk 0:01:25.8]} 29... Nxd3 {[%clk 0:01:03.6]} 30. Kxd3
{[%clk 0:01:26.1]} 30... Ref8 {[%clk 0:01:00.8]} 31. Ne4 {[%clk 0:01:11.6]}
31... R8f3+ {[%clk 0:00:55.3]} 32. Kd2 {[%clk 0:01:08]} 32... Rf4 {[%clk
0:00:45]} 33. Ke3 {[%clk 0:00:50.1]} 33... Rxe4+ {[%clk 0:00:41.7]} 34. Kxe4
{[%clk 0:00:47.7]} 34... Rxe2+ {[%clk 0:00:41.9]} 35. Kf4 {[%clk 0:00:46.3]}
35... Kf8 {[%clk 0:00:42.2]} 36. Rf1 {[%clk 0:00:38.8]} 36... Ke7 {[%clk
0:00:42.2]} 37. Kg5 {[%clk 0:00:37.5]} 37... Re5+ {[%clk 0:00:37.2]} 38. Kh6
{[%clk 0:00:35.9]} 38... Rf5 {[%clk 0:00:37.4]} 39. Re1 {[%clk 0:00:28.2]} 39...
Rf6+ {[%clk 0:00:36]} 40. Kg5 {[%clk 0:00:28]} 40... Rg6+ {[%clk 0:00:35.7]} 41.
Kf4 {[%clk 0:00:27.4]} 41... h6 {[%clk 0:00:34.5]} 42. Ke3 {[%clk 0:00:25.6]}
42... Kd6 {[%clk 0:00:34.2]} 43. Kd2 {[%clk 0:00:24.1]} 43... Rg7 {[%clk
0:00:33.5]} 44. b3 {[%clk 0:00:19.3]} 44... Bf5 {[%clk 0:00:30.6]} 45. Kc1
{[%clk 0:00:17.8]} 45... Re7 {[%clk 0:00:27.2]} 46. Rf1 {[%clk 0:00:16.9]} 46...
Bg6 {[%clk 0:00:26.5]} 47. Rf6 {[%clk 0:00:15.7]} 47... Be8 {[%clk 0:00:23.9]}
48. Rxh6 {[%clk 0:00:15]} 48... b5 {[%clk 0:00:24.2]} 49. Kb2 {[%clk 0:00:11.5]}
49... bxc4 {[%clk 0:00:24.2]} 50. bxc4 {[%clk 0:00:12.3]} 50... a5 {[%clk
0:00:23.2]} 51. Kc3 {[%clk 0:00:11.1]} 51... a4 {[%clk 0:00:22.4]} 52. Kb2
{[%clk 0:00:10.5]} 52... Rg7 {[%clk 0:00:22.7]} 53. Kc3 {[%clk 0:00:09.1]} 53...
Rg3+ {[%clk 0:00:22.1]} 54. Kd2 {[%clk 0:00:08.8]} 54... Rg2+ {[%clk 0:00:21.6]}
55. Ke3 {[%clk 0:00:09.3]} 55... Rxa2 {[%clk 0:00:21.5]} 56. Rh8 {[%clk
0:00:08.8]} 56... Ke7 {[%clk 0:00:20.3]} 57. Kf4 {[%clk 0:00:07.9]} 57... Bg6
{[%clk 0:00:19.5]} 58. Ke5 {[%clk 0:00:07.4]} 58... Re2+ {[%clk 0:00:19]} 59.
Kf4 {[%clk 0:00:07]} 59... Re4+ {[%clk 0:00:17.5]} 60. Kf3 {[%clk 0:00:06.5]}
60... Rxh4 {[%clk 0:00:16.8]} 61. Rh6 {[%clk 0:00:04.7]} 61... Rg4 {[%clk
0:00:15.7]} 62. Ke3 {[%clk 0:00:03.9]} 62... a3 {[%clk 0:00:15.8]} 63. Rh8
{[%clk 0:00:02.2]} 63... a2 {[%clk 0:00:15.6]} 64. Ra8 {[%clk 0:00:03.1]} 64...
Rg2 {[%clk 0:00:14.7]} 0-1

[Event "*** SCC Grand Prix: Titled Tuesday Blitz"]
[Site "Chess.com"]
[Date "2020.10.06"]
[Round "10"]
[White "alexrustemov"]
[Black "djano"]
[Result "1/2-1/2"]
[WhiteElo "2706"]
[BlackElo "2455"]
[TimeControl "180+1"]
[EndTime "11:59:38 PDT"]
[Termination "Game drawn by repetition"]

1. Nf3 {[%clk 0:03:00.9]} 1... g6 {[%clk 0:02:59.3]} 2. g3 {[%clk 0:03:00.7]}
2... Bg7 {[%clk 0:02:59]} 3. Bg2 {[%clk 0:03:01.2]} 3... Nf6 {[%clk 0:02:59]} 4.
O-O {[%clk 0:03:01.4]} 4... O-O {[%clk 0:02:59.6]} 5. c4 {[%clk 0:03:01.3]} 5...
c6 {[%clk 0:02:58.3]} 6. Nc3 {[%clk 0:03:01.5]} 6... d5 {[%clk 0:02:58.5]} 7.
cxd5 {[%clk 0:03:00.9]} 7... cxd5 {[%clk 0:02:59.4]} 8. d4 {[%clk 0:03:01.2]}
8... Ne4 {[%clk 0:02:59.4]} 9. Ne5 {[%clk 0:02:57.5]} 9... Nxc3 {[%clk
0:02:58.2]} 10. bxc3 {[%clk 0:02:57]} 10... Nc6 {[%clk 0:02:58.5]} 11. Nxc6
{[%clk 0:02:55.5]} 11... bxc6 {[%clk 0:02:59.4]} 12. Qa4 {[%clk 0:02:54.4]}
12... Qb6 {[%clk 0:02:58.3]} 13. Ba3 {[%clk 0:02:53.5]} 13... Qa6 {[%clk
0:02:51.9]} 14. Qxa6 {[%clk 0:02:50.9]} 14... Bxa6 {[%clk 0:02:52.8]} 15. Rfe1
{[%clk 0:02:49.4]} 15... Rfe8 {[%clk 0:02:50.4]} 16. e3 {[%clk 0:02:43.2]} 16...
e6 {[%clk 0:02:42.7]} 17. Rab1 {[%clk 0:02:42]} 17... Rab8 {[%clk 0:02:36.1]}
18. Bd6 {[%clk 0:02:36.9]} 18... Rxb1 {[%clk 0:02:05.6]} 19. Rxb1 {[%clk
0:02:37.8]} 19... Bf8 {[%clk 0:02:03.6]} 20. Bxf8 {[%clk 0:02:29.5]} 20... Kxf8
{[%clk 0:02:04.5]} 21. Rb3 {[%clk 0:02:17.7]} 21... Bb5 {[%clk 0:01:45.5]} 22.
Bf1 {[%clk 0:02:12]} 22... a6 {[%clk 0:01:22.2]} 23. f3 {[%clk 0:01:49.8]} 23...
Ke7 {[%clk 0:01:19.7]} 24. Kf2 {[%clk 0:01:49.2]} 24... Kd6 {[%clk 0:01:19.8]}
25. Be2 {[%clk 0:01:48.7]} 25... e5 {[%clk 0:01:18.4]} 26. Bd1 {[%clk
0:01:47.8]} 26... exd4 {[%clk 0:01:17.8]} 27. cxd4 {[%clk 0:01:46.7]} 27... Ba4
{[%clk 0:01:14.1]} 28. Rb1 {[%clk 0:01:45.6]} 28... Bxd1 {[%clk 0:01:13.9]} 29.
Rxd1 {[%clk 0:01:46.5]} 29... Rb8 {[%clk 0:01:13.9]} 30. Rd2 {[%clk 0:01:46]}
30... a5 {[%clk 0:01:13.6]} 31. e4 {[%clk 0:01:44.3]} 31... a4 {[%clk
0:01:10.8]} 32. Ke3 {[%clk 0:01:43.1]} 32... Rb1 {[%clk 0:00:57]} 33. e5+ {[%clk
0:01:42.4]} 33... Kc7 {[%clk 0:00:51]} 34. f4 {[%clk 0:01:41.9]} 34... h5 {[%clk
0:00:43.8]} 35. Kd3 {[%clk 0:01:38.6]} 35... c5 {[%clk 0:00:34.1]} 36. dxc5
{[%clk 0:01:36.8]} 36... Kc6 {[%clk 0:00:33.3]} 37. Rc2 {[%clk 0:01:35.3]} 37...
Rb5 {[%clk 0:00:30]} 38. Kd4 {[%clk 0:00:55.2]} 38... Rb4+ {[%clk 0:00:30.2]}
39. Kd3 {[%clk 0:00:54.2]} 39... Rb5 {[%clk 0:00:30.3]} 40. h3 {[%clk
0:00:53.6]} 40... Rb4 {[%clk 0:00:26.9]} 41. Ke3 {[%clk 0:00:49.5]} 41... Re4+
{[%clk 0:00:24.6]} 42. Kf3 {[%clk 0:00:48.1]} 42... Rb4 {[%clk 0:00:25]} 43. g4
{[%clk 0:00:47.7]} 43... hxg4+ {[%clk 0:00:25.2]} 44. hxg4 {[%clk 0:00:48.6]}
44... Rd4 {[%clk 0:00:14.9]} 45. Re2 {[%clk 0:00:38]} 45... Rd3+ {[%clk
0:00:08.8]} 46. Re3 {[%clk 0:00:35.5]} 46... Rd2 {[%clk 0:00:08.4]} 47. Ra3
{[%clk 0:00:30]} 47... Rd4 {[%clk 0:00:05.4]} 48. f5 {[%clk 0:00:28.2]} 48... g5
{[%clk 0:00:04.4]} 49. Re3 {[%clk 0:00:25.5]} 49... Rf4+ {[%clk 0:00:04.5]} 50.
Kg3 {[%clk 0:00:25.7]} 50... d4 {[%clk 0:00:04.7]} 51. Re2 {[%clk 0:00:24.6]}
51... d3 {[%clk 0:00:05.2]} 52. Rd2 {[%clk 0:00:24.1]} 52... Re4 {[%clk
0:00:04.5]} 53. Rxd3 {[%clk 0:00:22.8]} 53... Rxe5 {[%clk 0:00:04.8]} 54. Rd4
{[%clk 0:00:21.1]} 54... Re3+ {[%clk 0:00:03.4]} 55. Kf2 {[%clk 0:00:20.9]}
55... Ra3 {[%clk 0:00:04.3]} 56. Rd8 {[%clk 0:00:17.9]} 56... Rxa2+ {[%clk
0:00:04]} 57. Kf3 {[%clk 0:00:18.8]} 57... Ra3+ {[%clk 0:00:03.8]} 58. Ke4
{[%clk 0:00:18.5]} 58... Rg3 {[%clk 0:00:04.3]} 59. Ra8 {[%clk 0:00:18.4]} 59...
Rxg4+ {[%clk 0:00:04.1]} 60. Ke5 {[%clk 0:00:19.3]} 60... Rf4 {[%clk 0:00:04.9]}
61. Ra7 {[%clk 0:00:13.7]} 61... Kxc5 {[%clk 0:00:04.7]} 62. Rxf7 {[%clk
0:00:14]} 62... a3 {[%clk 0:00:04.9]} 63. Rc7+ {[%clk 0:00:09.3]} 63... Kb4
{[%clk 0:00:05]} 64. Rb7+ {[%clk 0:00:09.4]} 64... Kc3 {[%clk 0:00:04.8]} 65.
Ra7 {[%clk 0:00:09]} 65... Kb2 {[%clk 0:00:04.7]} 66. Rb7+ {[%clk 0:00:08.8]}
66... Kc2 {[%clk 0:00:04.6]} 67. Rc7+ {[%clk 0:00:09.1]} 67... Kb2 {[%clk
0:00:04.9]} 68. Rb7+ {[%clk 0:00:09.6]} 68... Kc3 {[%clk 0:00:05]} 69. Rc7+
{[%clk 0:00:09.8]} 69... Rc4 {[%clk 0:00:04.5]} 70. Ra7 {[%clk 0:00:08.9]} 70...
Kb2 {[%clk 0:00:04.1]} 71. f6 {[%clk 0:00:08.9]} 71... Rf4 {[%clk 0:00:04.1]}
72. Rb7+ {[%clk 0:00:09]} 72... Kc2 {[%clk 0:00:04.2]} 73. Rc7+ {[%clk
0:00:09.3]} 73... Kb2 {[%clk 0:00:04.1]} 74. Rb7+ {[%clk 0:00:09.7]} 74... Kc2
{[%clk 0:00:04.2]} 75. Rc7+ {[%clk 0:00:10]} 75... Kb2 {[%clk 0:00:04.4]} 76.
Rb7+ {[%clk 0:00:10.2]} 1/2-1/2